Workbook

Sheet Family Budget
B2: YEAR: | C2: 2017
B4: CASH AVAILABLE | C4: JAN | D4: FEB | E4: MAR | F4: APR | G4: MAY | H4: JUN | I4: JUL | J4: AUG | K4: SEP | L4: OCT | M4: NOV | N4: DEC | O4: YTD TOTAL | P4: TREND
B5: Monthly Cash | C5: =C11-C64 -> 4795 | D5: =D11-D64 -> -5863 | E5: =E11-E64 -> -8676 | F5: =F11-F64 -> -5205 | G5: =G11-G64 -> -5259 | H5: =H11-H64 -> -5216 | I5: =I11-I64 -> -7165 | J5: =J11-J64 -> -9469 | K5: =K11-K64 -> -5205 | L5: =L11-L64 -> -5184 | M5: =M11-M64 -> -12388 | N5: =N11-N64 -> -12388 | O5: =O11-O64 -> -77223
B7: INCOME TYPE | C7: JAN | D7: FEB | E7: MAR | F7: APR | G7: MAY | H7: JUN | I7: JUL | J7: AUG | K7: SEP | L7: OCT | M7: NOV | N7: DEC | O7: YTD TOTAL | P7: TREND
B8: Income 1 | C8: 5000 | D8: 4410 | E8: 4019 | F8: 4263 | G8: 4123 | H8: 4308 | I8: 4162 | J8: 4165 | K8: 4248 | L8: 4324 | M8: 4324 | N8: 4324 | O8: =SUM(C8:N8) -> 51670
B9: Income 2 | C9: 5000 | D9: 296 | E9: 251 | F9: 269 | G9: 252 | H9: 252 | I9: 262 | J9: 258 | K9: 296 | L9: 270 | M9: 270 | N9: 270 | O9: =SUM(C9:N9) -> 7946
B10: Other Income | C10: 5000 | D10: 507 | E10: 551 | F10: 556 | G10: 588 | H10: 534 | I10: 533 | J10: 585 | K10: 560 | L10: 520 | M10: 270 | N10: 270 | O10: =SUM(C10:N10) -> 10474
B11: TOTAL INCOME | C11: =SUM(C8:C10) -> 15000 | D11: =SUM(D8:D10) -> 5213 | E11: =SUM(E8:E10) -> 4821 | F11: =SUM(F8:F10) -> 5088 | G11: =SUM(G8:G10) -> 4963 | H11: =SUM(H8:H10) -> 5094 | I11: =SUM(I8:I10) -> 4957 | J11: =SUM(J8:J10) -> 5008 | K11: =SUM(K8:K10) -> 5104 | L11: =SUM(L8:L10) -> 5114 | M11: =SUM(M8:M10) -> 4864 | N11: =SUM(N8:N10) -> 4864 | O11: =SUM(O8:O10) -> 70090
B13: EXPENSES | C13: JAN | D13: FEB | E13: MAR | F13: APR | G13: MAY | H13: JUN | I13: JUL | J13: AUG | K13: SEP | L13: OCT | M13: NOV | N13: DEC | O13: YTD TOTAL | P13: TREND
B14: Pay Yourself | C14: 250 | D14: 250 | E14: 250 | F14: 250 | G14: 250 | H14: 250 | I14: 250 | J14: 250 | K14: 250 | L14: 250 | M14: 250 | N14: 250 | O14: =SUM(C14:N14) -> 3000
B15: Mortgage/Rent | C15: 1500 | D15: 1500 | E15: 1500 | F15: 1500 | G15: 1500 | H15: 1500 | I15: 1500 | J15: 1500 | K15: 1500 | L15: 1500 | M15: 1500 | N15: 1500 | O15: =SUM(C15:N15) -> 18000
B16: Grocery | C16: 250 | D16: 331 | E16: 299 | F16: 333 | G16: 324 | H16: 313 | I16: 338 | J16: 225 | K16: 258 | L16: 322 | M16: 322 | N16: 322 | O16: =SUM(C16:N16) -> 3637
B17: Resturants
B18: Car payment | C18: 345 | D18: 345 | E18: 345 | F18: 345 | G18: 345 | H18: 345 | I18: 345 | J18: 345 | K18: 345 | L18: 345 | M18: 345 | N18: 345 | O18: =SUM(C18:N18) -> 4140
B19: Auto Maintenance
B20: Gas
B21: Insurance | C21: 120 | D21: 120 | E21: 120 | F21: 120 | G21: 120 | H21: 120 | I21: 120 | J21: 120 | K21: 120 | L21: 120 | M21: 345 | N21: 345 | O21: =SUM(C21:N21) -> 1890
B22: Home phone | C22: 50 | D22: 50 | E22: 50 | F22: 50 | G22: 50 | H22: 50 | I22: 50 | J22: 50 | K22: 50 | L22: 50 | M22: 345 | N22: 345 | O22: =SUM(C22:N22) -> 1190
B23: Cell phone | C23: 72 | D23: 70 | E23: 80 | F23: 70 | G23: 75 | H23: 80 | I23: 90 | J23: 73 | K23: 75 | L23: 70 | M23: 345 | N23: 345 | O23: =SUM(C23:N23) -> 1445
B24: Cable TV | C24: 60 | D24: 63 | E24: 65 | F24: 60 | G24: 65 | H24: 60 | I24: 63 | J24: 60 | K24: 63 | L24: 60 | M24: 345 | N24: 345 | O24: =SUM(C24:N24) -> 1309
B25: Internet | C25: 45 | D25: 45 | E25: 45 | F25: 45 | G25: 45 | H25: 45 | I25: 45 | J25: 45 | K25: 45 | L25: 45 | M25: 345 | N25: 345 | O25: =SUM(C25:N25) -> 1140
B26: Electricity | C26: 155 | D26: 155 | E26: 158 | F26: 160 | G26: 165 | H26: 200 | I26: 340 | J26: 350 | K26: 240 | L26: 180 | M26: 345 | N26: 345 | O26: =SUM(C26:N26) -> 2793
B27: Water | C27: 35 | D27: 35 | E27: 37 | F27: 39 | G27: 45 | H27: 42 | I27: 42 | J27: 36 | K27: 38 | L27: 40 | M27: 345 | N27: 345 | O27: =SUM(C27:N27) -> 1079
B28: Gas | C28: 50 | D28: 45 | E28: 40 | F28: 40 | G28: 42 | H28: 50 | I28: 55 | J28: 40 | K28: 43 | L28: 30 | M28: 345 | N28: 345 | O28: =SUM(C28:N28) -> 1125
B29: Entertainment | C29: 123 | D29: 92 | E29: 58 | F29: 131 | G29: 46 | H29: 105 | I29: 84 | J29: 108 | K29: 132 | L29: 136 | M29: 345 | N29: 345 | O29: =SUM(C29:N29) -> 1705
B30: Tuition | C30: 550 | D30: 550 | E30: 550 | F30: 550 | G30: 550 | H30: 550 | I30: 550 | J30: 550 | K30: 550 | L30: 550 | M30: 345 | N30: 345 | O30: =SUM(C30:N30) -> 6190
B31: Savings | C31: 200 | D31: 225 | E31: 300 | F31: 200 | G31: 200 | H31: 200 | I31: 250 | J31: 325 | K31: 200 | L31: 200 | M31: 345 | N31: 345 | O31: =SUM(C31:N31) -> 2990
B32: Reserve Fund | C32: 200 | D32: 225 | E32: 300 | F32: 200 | G32: 200 | H32: 200 | I32: 250 | J32: 325 | K32: 200 | L32: 200 | M32: 345 | N32: 345 | O32: =SUM(C32:N32) -> 2990
B33: Clothes | C33: 200 | D33: 225 | E33: 300 | F33: 200 | G33: 200 | H33: 200 | I33: 250 | J33: 325 | K33: 200 | L33: 200 | M33: 345 | N33: 345 | O33: =SUM(C33:N33) -> 2990
B34: Dry Cleaning | C34: 200 | D34: 225 | E34: 300 | F34: 200 | G34: 200 | H34: 200 | I34: 250 | J34: 325 | K34: 200 | L34: 200 | M34: 345 | N34: 345 | O34: =SUM(C34:N34) -> 2990
B35: Hair Care | C35: 200 | D35: 225 | E35: 300 | F35: 200 | G35: 200 | H35: 200 | I35: 250 | J35: 325 | K35: 200 | L35: 200 | M35: 345 | N35: 345 | O35: =SUM(C35:N35) -> 2990
B36: Life Insurance | C36: 200 | D36: 225 | E36: 300 | F36: 200 | G36: 200 | H36: 200 | I36: 250 | J36: 325 | K36: 200 | L36: 200 | M36: 345 | N36: 345 | O36: =SUM(C36:N36) -> 2990
B37: Electricity | C37: 200 | D37: 225 | E37: 300 | F37: 200 | G37: 200 | H37: 200 | I37: 250 | J37: 325 | K37: 200 | L37: 200 | M37: 345 | N37: 345 | O37: =SUM(C37:N37) -> 2990
B38: Natural Gas | C38: 200 | D38: 225 | E38: 300 | F38: 200 | G38: 200 | H38: 200 | I38: 250 | J38: 325 | K38: 200 | L38: 200 | M38: 345 | N38: 345 | O38: =SUM(C38:N38) -> 2990
B39: Homeowners Assoc. | C39: 200 | D39: 225 | E39: 300 | F39: 200 | G39: 200 | H39: 200 | I39: 250 | J39: 325 | K39: 200 | L39: 200 | M39: 345 | N39: 345 | O39: =SUM(C39:N39) -> 2990
B40: Trash Removal | C40: 200 | D40: 225 | E40: 300 | F40: 200 | G40: 200 | H40: 200 | I40: 250 | J40: 325 | K40: 200 | L40: 200 | M40: 345 | N40: 345 | O40: =SUM(C40:N40) -> 2990
B41: Tuition | C41: 200 | D41: 225 | E41: 300 | F41: 200 | G41: 200 | H41: 200 | I41: 250 | J41: 325 | K41: 200 | L41: 200 | M41: 345 | N41: 345 | O41: =SUM(C41:N41) -> 2990
B42: Recreation | C42: 200 | D42: 225 | E42: 300 | F42: 200 | G42: 200 | H42: 200 | I42: 250 | J42: 325 | K42: 200 | L42: 200 | M42: 345 | N42: 345 | O42: =SUM(C42:N42) -> 2990
B43: Snacks | C43: 200 | D43: 225 | E43: 300 | F43: 200 | G43: 200 | H43: 200 | I43: 250 | J43: 325 | K43: 200 | L43: 200 | M43: 345 | N43: 345 | O43: =SUM(C43:N43) -> 2990
B44: Medical (prescriptions) | C44: 200 | D44: 225 | E44: 300 | F44: 200 | G44: 200 | H44: 200 | I44: 250 | J44: 325 | K44: 200 | L44: 200 | M44: 345 | N44: 345 | O44: =SUM(C44:N44) -> 2990
B45: Medical (Co-pay) | C45: 200 | D45: 225 | E45: 300 | F45: 200 | G45: 200 | H45: 200 | I45: 250 | J45: 325 | K45: 200 | L45: 200 | M45: 345 | N45: 345 | O45: =SUM(C45:N45) -> 2990
B46: Medical (Insurance) | C46: 200 | D46: 225 | E46: 300 | F46: 200 | G46: 200 | H46: 200 | I46: 250 | J46: 325 | K46: 200 | L46: 200 | M46: 345 | N46: 345 | O46: =SUM(C46:N46) -> 2990
B47: Lawn Care | C47: 200 | D47: 225 | E47: 300 | F47: 200 | G47: 200 | H47: 200 | I47: 250 | J47: 325 | K47: 200 | L47: 200 | M47: 345 | N47: 345 | O47: =SUM(C47:N47) -> 2990
B48: House Cleaning | C48: 200 | D48: 225 | E48: 300 | F48: 200 | G48: 200 | H48: 200 | I48: 250 | J48: 325 | K48: 200 | L48: 200 | M48: 345 | N48: 345 | O48: =SUM(C48:N48) -> 2990
B49: Taxes (personal) | C49: 200 | D49: 225 | E49: 300 | F49: 200 | G49: 200 | H49: 200 | I49: 250 | J49: 325 | K49: 200 | L49: 200 | M49: 345 | N49: 345 | O49: =SUM(C49:N49) -> 2990
B50: Taxes (property) | C50: 200 | D50: 225 | E50: 300 | F50: 200 | G50: 200 | H50: 200 | I50: 250 | J50: 325 | K50: 200 | L50: 200 | M50: 345 | N50: 345 | O50: =SUM(C50:N50) -> 2990
B51: Child Support | C51: 200 | D51: 225 | E51: 300 | F51: 200 | G51: 200 | H51: 200 | I51: 250 | J51: 325 | K51: 200 | L51: 200 | M51: 345 | N51: 345 | O51: =SUM(C51:N51) -> 2990
B52: Alimony | C52: 200 | D52: 225 | E52: 300 | F52: 200 | G52: 200 | H52: 200 | I52: 250 | J52: 325 | K52: 200 | L52: 200 | M52: 345 | N52: 345 | O52: =SUM(C52:N52) -> 2990
B53: Garnishment | C53: 200 | D53: 225 | E53: 300 | F53: 200 | G53: 200 | H53: 200 | I53: 250 | J53: 325 | K53: 200 | L53: 200 | M53: 345 | N53: 345 | O53: =SUM(C53:N53) -> 2990
B54: Bankruptcy payment | C54: 200 | D54: 225 | E54: 300 | F54: 200 | G54: 200 | H54: 200 | I54: 250 | J54: 325 | K54: 200 | L54: 200 | M54: 345 | N54: 345 | O54: =SUM(C54:N54) -> 2990
B55: Charitable Contributions | C55: 200 | D55: 225 | E55: 300 | F55: 200 | G55: 200 | H55: 200 | I55: 250 | J55: 325 | K55: 200 | L55: 200 | M55: 345 | N55: 345 | O55: =SUM(C55:N55) -> 2990
B56: Dues | C56: 200 | D56: 225 | E56: 300 | F56: 200 | G56: 200 | H56: 200 | I56: 250 | J56: 325 | K56: 200 | L56: 200 | M56: 345 | N56: 345 | O56: =SUM(C56:N56) -> 2990
B57: Dues | C57: 200 | D57: 225 | E57: 300 | F57: 200 | G57: 200 | H57: 200 | I57: 250 | J57: 325 | K57: 200 | L57: 200 | M57: 345 | N57: 345 | O57: =SUM(C57:N57) -> 2990
B58: Fees (type) | C58: 200 | D58: 225 | E58: 300 | F58: 200 | G58: 200 | H58: 200 | I58: 250 | J58: 325 | K58: 200 | L58: 200 | M58: 345 | N58: 345 | O58: =SUM(C58:N58) -> 2990
B59: Fees (type) | C59: 200 | D59: 225 | E59: 300 | F59: 200 | G59: 200 | H59: 200 | I59: 250 | J59: 325 | K59: 200 | L59: 200 | M59: 345 | N59: 345 | O59: =SUM(C59:N59) -> 2990
B60: Subscriptions | C60: 200 | D60: 225 | E60: 300 | F60: 200 | G60: 200 | H60: 200 | I60: 250 | J60: 325 | K60: 200 | L60: 200 | M60: 345 | N60: 345 | O60: =SUM(C60:N60) -> 2990
B61: Memberships | C61: 200 | D61: 225 | E61: 300 | F61: 200 | G61: 200 | H61: 200 | I61: 250 | J61: 325 | K61: 200 | L61: 200 | M61: 345 | N61: 345 | O61: =SUM(C61:N61) -> 2990
B62: Pet Care | C62: 200 | D62: 225 | E62: 300 | F62: 200 | G62: 200 | H62: 200 | I62: 250 | J62: 325 | K62: 200 | L62: 200 | M62: 345 | N62: 345 | O62: =SUM(C62:N62) -> 2990
B63: Daily Incidentals | C63: 200 | D63: 225 | E63: 300 | F63: 200 | G63: 200 | H63: 200 | I63: 250 | J63: 325 | K63: 200 | L63: 200 | M63: 345 | N63: 345 | O63: =SUM(C63:N63) -> 2990
B64: TOTAL EXPENSES | C64: =SUM(C14:C63)+D65 -> 10205 | D64: =SUM(D14:D63)+E65 -> 11076 | E64: =SUM(E14:E63)+F65 -> 13497 | F64: =SUM(F14:F63)+G65 -> 10293 | G64: =SUM(G14:G63)+H65 -> 10222 | H64: =SUM(H14:H63)+I65 -> 10310 | I64: =SUM(I14:I63)+J65 -> 12122 | J64: =SUM(J14:J63)+K65 -> 14477 | K64: =SUM(K14:K63)+L65 -> 10309 | L64: =SUM(L14:L63)+M65 -> 10298 | M64: =SUM(M14:M63)+N65 -> 17252 | N64: =SUM(N14:N63)+O65 -> 17252 | O64: =SUM(O14:O63)+P65 -> 147313
I66: www.CUAtlanta.org

Sheet Sheet 2
